fUST/lending_fUST_20240909
["ID","MTS","AMOUNT","RATE_DAILY","PERIOD"]
[337605550,1725891045990,-1687.17,0.00035616,14]
[337605552,1725891046000,-500.0,0.00035616,14]
[337605554,1725891046010,-688.65,0.00035616,14]
[337605556,1725891046019,-567.56,0.00035616,14]
[337605558,1725891046029,-500.0,0.00035616,14]
[337605560,1725891046038,-567.56,0.00035616,14]
[337605562,1725891046047,-567.56,0.00035616,14]
[337605564,1725891046056,-567.56,0.00035616,14]
[337605566,1725891046065,-567.56,0.00035616,14]
[337605568,1725891046075,-567.56,0.00035616,14]
[337605570,1725891046085,-158.39303,0.00035616,14]
[337605572,1725891046094,-567.56,0.00035616,14]
[337605574,1725891046103,-500.0,0.00035616,14]
[337605576,1725891046112,-567.56,0.00035616,14]
[337605578,1725891046122,-567.56,0.00035616,14]
[337605580,1725891046131,-500.0,0.00035616,14]
[337605583,1725891046140,-567.56,0.00035616,14]
[337605585,1725891046151,-567.56,0.00035616,14]
[337605587,1725891046160,-567.69111011,0.00035616,14]
[337605589,1725891046170,-500.0,0.00035616,14]
[337605591,1725891046180,-500.48690562,0.00035616,14]
[337605593,1725891046189,-500.0,0.00035616,14]
[337605595,1725891046198,-47576.09,0.00035616,14]
[337605597,1725891046207,-500.0,0.00035616,14]
[337605599,1725891046217,-378.6515039,0.00035616,14]
[337605601,1725891046227,-551.17035896,0.00035616,14]
[337605603,1725891046235,-358.4850641,0.00035616,14]
[337605604,1725891046244,-386.22719369,0.00035616,14]
[337605606,1725891046255,-568.01910834,0.00035616,14]
[337605608,1725891046264,-500.0,0.00035616,14]
[337605610,1725891046273,-796.58,0.00035616,14]
[337605612,1725891046283,-502.39211463,0.00035616,14]
[337605614,1725891046293,-503.42555925,0.00035616,14]
[337605616,1725891046302,-606.33,0.00035616,14]
[337605618,1725891046312,-1602.69,0.00035616,14]
[337605620,1725891046321,-564.93,0.00035616,14]
[337605622,1725891046331,-968.42,0.00035616,14]
[337605624,1725891046340,-500.0,0.00035616,14]
[337605626,1725891046350,-503.12993496,0.00035616,14]
[337605628,1725891046359,-716.53,0.00035616,7]
[337605630,1725891046369,-500.0,0.00035616,14]
[337605632,1725891046379,-501.26264946,0.00035616,14]
[337605634,1725891046388,-4171.440425,0.00035616,14]
[337605636,1725891046398,-4171.440425,0.00035616,14]
[337605638,1725891046407,-4171.440425,0.00035616,14]
[337605640,1725891046417,-4171.440425,0.00035616,14]
[337605642,1725891046427,-2237.3,0.00035616,14]
[337605658,1725891046574,-500.0,0.00035616,14]
[337605660,1725891046585,-500.0,0.00035616,14]
[337605662,1725891046595,-500.0,0.00035616,14]
[337605663,1725891046605,-500.0,0.00035616,14]
[337605665,1725891046615,-1386.75,0.00035616,14]
[337605668,1725891046624,-4171.440425,0.00035616,14]
[337605670,1725891046635,-4171.440425,0.00035616,14]
[337605672,1725891046644,-500.0,0.00035616,14]
[337605674,1725891046653,-4171.440425,0.00035616,14]
[337605676,1725891046663,-4171.440425,0.00035616,14]
[337605678,1725891046672,-386.93385966,0.00035616,14]
[337605679,1725891046682,-500.0,0.00035616,14]
[337605681,1725891046691,-786.94,0.00035616,14]
[337605683,1725891046700,-500.0,0.00035616,14]
[337605685,1725891046709,-1076.49,0.00035616,14]
[337605687,1725891046719,-500.0,0.00035616,14]
[337605690,1725891046730,-628.71,0.00035616,14]
[337605692,1725891046739,-500.0,0.00035616,14]
[337605694,1725891046748,-500.0,0.00035616,14]
[337605695,1725891046757,-501.62178188,0.00035616,14]
[337605697,1725891046767,-796.83,0.00035616,14]
[337605699,1725891046776,-500.0,0.00035616,14]
[337605701,1725891046786,-500.0,0.00035616,14]
[337605704,1725891046796,-776.34,0.00035616,14]
[337605706,1725891046805,-917.1,0.00035616,14]
[337605707,1725891046814,-2217.94,0.00035616,14]
[337605710,1725891046824,-290.23,0.00035616,7]
[337605711,1725891046833,-501.36189541,0.00035616,14]
[337605713,1725891046842,-2876.3,0.00035616,14]
[337605715,1725891046851,-500.0,0.00035616,14]
[337605717,1725891046861,-500.0,0.00035616,14]
[337605719,1725891046870,-500.0,0.00035616,14]
[337605721,1725891046880,-502.1513624,0.00035616,14]
[337605723,1725891046890,-357.9401846,0.00035616,14]
[337605725,1725891046900,-500.0,0.00035616,14]
[337605727,1725891046910,-500.0,0.00035616,14]
[337605729,1725891046920,-602.85,0.00035616,14]
[337605731,1725891046930,-734.26,0.00035616,14]
[337605734,1725891046940,-500.0,0.00035616,14]
[337605735,1725891046949,-151.0,0.00035616,14]
[337605737,1725891046959,-819.58,0.00035616,14]
[337605740,1725891046968,-960.65,0.00035616,14]
[337605741,1725891046980,-500.0,0.00035616,14]
[337605743,1725891046989,-502.08844306,0.00035616,14]
[337605745,1725891046998,-151.0,0.00035616,14]
[337605747,1725891047007,-500.0,0.00035616,14]
[337605749,1725891047016,-500.0,0.00035616,14]
[337605751,1725891047026,-151.0,0.00035616,14]
[337605753,1725891047036,-151.0,0.00035616,14]
[337605755,1725891047047,-500.0,0.00035616,14]
[337605758,1725891047058,-151.0,0.00035616,14]
[337605760,1725891047067,-521.75146082,0.00035616,14]
[337605761,1725891047077,-465.744916,0.00035616,14]
[337605763,1725891047086,-465.744916,0.00035616,14]
[337605765,1725891047096,-465.744916,0.00035616,14]
[337605767,1725891047106,-465.744916,0.00035616,14]
[337605770,1725891047116,-500.0,0.00035616,14]
[337605772,1725891047127,-500.0,0.00035616,14]
[337605774,1725891047137,-333.68941006,0.00035616,14]
[337605776,1725891047147,-507.92,0.00035616,14]
[337605778,1725891047157,-694.16,0.00035616,14]
[337605780,1725891047168,-500.0,0.00035616,14]
[337605782,1725891047179,-465.744916,0.00035616,14]
[337605784,1725891047189,-221.07170898,0.00035616,14]
[337605786,1725891047199,-465.744916,0.00035616,14]
[337605788,1725891047208,-465.744916,0.00035616,14]
[337605790,1725891047218,-465.744916,0.00035616,14]
[337605792,1725891047229,-698.78,0.00035616,14]
[337605794,1725891047238,-501.44101717,0.00035616,14]
[337605795,1725891047247,-507.88213887,0.00035616,14]
[337605796,1725891047257,-151.0,0.00035616,14]
[337605797,1725891047266,-151.0,0.00035616,14]
[337605798,1725891047276,-151.0,0.00035616,14]
[337605799,1725891047287,-500.0,0.00035616,14]
[337605800,1725891047297,-286.19943,0.00035616,14]
[337605801,1725891047307,-500.0,0.00035616,14]
[337605802,1725891047317,-500.0,0.00035616,14]
[337605803,1725891047328,-23296.63,0.00035616,14]
[337605804,1725891047337,-5466.3,0.00035616,14]
[337605805,1725891047346,-684.39,0.00035616,14]
[337605806,1725891047357,-500.0,0.00035616,14]
[337605807,1725891047367,-890.7,0.00035616,14]
[337605809,1725891047377,-504.22030287,0.00035616,14]
[337605810,1725891047388,-84252.11,0.00035616,14]
[337605812,1725891047397,-955.42,0.00035616,14]
[337605814,1725891047407,-500.0,0.00035616,14]
[337605816,1725891047417,-903.52,0.00035616,14]
[337605818,1725891047426,-500.0,0.00035616,14]
[337605820,1725891047436,-500.0,0.00035616,14]
[337605823,1725891047446,-502.66399721,0.00035616,14]
[337605825,1725891047456,-504.69781228,0.00035616,14]
[337605827,1725891047465,-513.06,0.00035616,14]
[337605829,1725891047477,-10042.4,0.00035616,14]
[337605831,1725891047490,-500.0,0.00035616,14]
[337605833,1725891047501,-5289.18,0.00035616,14]
[337605835,1725891047510,-151.0,0.00035616,14]
[337605837,1725891047519,-1304.66,0.00035616,14]
[337605839,1725891047529,-500.0,0.00035616,14]
[337605841,1725891047539,-500.0,0.00035616,14]
[337605843,1725891047549,-500.0,0.00035616,14]
[337605845,1725891047561,-2396.84,0.00035616,14]
[337605847,1725891047572,-500.0,0.00035616,14]
[337605849,1725891047581,-500.0,0.00035616,14]
[337605851,1725891047590,-500.0,0.00035616,14]
[337605853,1725891047601,-500.0,0.00035616,14]
[337605855,1725891047612,-580.25,0.00035616,14]
[337605857,1725891047621,-5104.29,0.00035616,14]
[337605859,1725891047631,-500.0,0.00035616,14]
[337605862,1725891047643,-1533.31,0.00035616,14]
[337605864,1725891047652,-1179.98,0.00035616,14]
[337605866,1725891047662,-500.0,0.00035616,14]
[337605868,1725891047672,-500.0,0.00035616,14]
[337605870,1725891047681,-724.54,0.00035616,14]
[337605872,1725891047690,-500.0,0.00035616,14]
[337605874,1725891047700,-500.0,0.00035616,14]
[337605876,1725891047710,-500.0,0.00035616,14]
[337605878,1725891047720,-500.0,0.00035616,14]
[337605880,1725891047733,-2481.45,0.00035616,14]
[337605882,1725891047742,-500.0,0.00035616,14]
[337605884,1725891047751,-500.0,0.00035616,14]
[337605886,1725891047760,-502.17225633,0.00035616,14]
[337605888,1725891047769,-500.0,0.00035616,14]
[337605890,1725891047779,-779.38,0.00035616,14]
[337605892,1725891047789,-500.0,0.00035616,14]
[337605894,1725891047798,-1711.78,0.00035616,14]
[337605896,1725891047807,-500.0,0.00035616,14]
[337605898,1725891047818,-500.0,0.00035616,14]
[337605900,1725891047827,-753.6,0.00035616,14]
[337605902,1725891047837,-1496.29,0.00035616,14]
[337605904,1725891047846,-500.0,0.00035616,14]
[337605906,1725891047855,-500.0,0.00035616,14]
[337605908,1725891047865,-500.0,0.00035616,14]
[337605910,1725891047874,-5032.03,0.00035616,14]
[337605912,1725891047884,-500.0,0.00035616,14]
[337605914,1725891047893,-525.69215942,0.00035616,14]
[337605916,1725891047903,-151.0,0.00035616,14]
[337605917,1725891047912,-151.0,0.00035616,14]
[337605919,1725891047922,-151.0,0.00035616,14]
[337605922,1725891047932,-151.0,0.00035616,14]
[337605924,1725891047942,-1286.18,0.00035616,14]
[337605926,1725891047952,-504.75987686,0.00035616,14]
[337605928,1725891047962,-501.59963453,0.00035616,14]
[337605930,1725891047973,-1584.91,0.00035616,14]
[337605932,1725891047983,-655.58,0.00035616,14]
[337605934,1725891047993,-500.0,0.00035616,14]
[337605936,1725891048002,-500.0,0.00035616,14]
[337605938,1725891048012,-500.0,0.00035616,14]
[337605940,1725891048022,-151.0,0.00035616,14]
[337605942,1725891048031,-151.0,0.00035616,14]
[337605944,1725891048040,-336.54316478,0.00035616,14]
[337605946,1725891048049,-500.0,0.00035616,14]
[337605948,1725891048059,-151.0,0.00035616,14]
[337605950,1725891048068,-212.229401,0.00035616,14]
[337605952,1725891048078,-216.81555469,0.00035616,14]
[337605954,1725891048088,-500.0,0.00035616,14]
[337605956,1725891048097,-1124.27,0.00035616,14]
[337605958,1725891048106,-500.0,0.00035616,14]
[337605960,1725891048116,-12.74608166,0.00035616,14]
[337605986,1725891048419,-2179.16391834,0.00035616,14]
[337605988,1725891048441,-500.0,0.00035616,14]
[337605990,1725891048464,-500.0,0.00035616,14]
[337605992,1725891048486,-500.0,0.00035616,14]
[337605994,1725891048510,-541.02,0.00035616,14]
[337605996,1725891048534,-500.87711517,0.00035616,14]
[337605998,1725891048556,-3470.01,0.00035616,14]
[337606000,1725891048577,-363.637776,0.00035616,14]
[337606002,1725891048588,-363.637776,0.00035616,14]
[337606004,1725891048598,-363.637776,0.00035616,14]
[337606006,1725891048608,-1055.47,0.00035616,14]
[337606008,1725891048619,-363.637776,0.00035616,14]
[337606010,1725891048629,-363.637776,0.00035616,14]
[337606012,1725891048639,-363.637776,0.00035616,14]
[337606014,1725891048648,-500.0,0.00035616,14]
[337606016,1725891048658,-363.637776,0.00035616,14]
[337606018,1725891048668,-363.637776,0.00035616,14]
[337606020,1725891048678,-500.0,0.00035616,14]
[337606022,1725891048688,-500.0,0.00035616,14]
[337606024,1725891048698,-448.34734926,0.00035616,14]
[337606026,1725891048712,-8606.67,0.00035616,14]
[337606028,1725891048723,-501.45512182,0.00035616,14]
[337606030,1725891048733,-543.05,0.00035616,14]
[337606032,1725891048743,-5583.06,0.00035616,14]
[337606034,1725891048753,-519.48360018,0.00035616,2]
[337606036,1725891048763,-999.0,0.00035616,14]
[337606038,1725891048772,-1108.89,0.00035616,14]
[337606040,1725891048782,-906.69,0.00035616,14]
[337606042,1725891048792,-500.0,0.00035616,14]
[337606044,1725891048802,-500.0,0.00035616,14]
[337606046,1725891048812,-500.0,0.00035616,14]
[337606048,1725891048822,-1382.642649,0.00035616,14]
[337606050,1725891048832,-1382.642649,0.00035616,14]
[337606052,1725891048841,-1382.642649,0.00035616,14]
[337606054,1725891048851,-500.0,0.00035616,14]
[337606056,1725891048861,-1382.642649,0.00035616,14]
[337606057,1725891048871,-500.0,0.00035616,14]
[337606059,1725891048880,-1382.642649,0.00035616,14]
[337606061,1725891048890,-511.21213967,0.00035616,14]
[337606063,1725891048900,-7668.42,0.00035616,14]
[337606065,1725891048909,-1382.642649,0.00035616,14]
[337606067,1725891048920,-1382.642649,0.00035616,14]
[337606069,1725891048931,-1382.642649,0.00035616,14]
[337606071,1725891048940,-500.0,0.00035616,14]
[337606073,1725891048950,-502.35896847,0.00035616,14]
[337606075,1725891048960,-837.74,0.00035616,14]
[337606077,1725891048970,-625.01165026,0.00035616,14]
[337606079,1725891048981,-1093.82,0.00035616,14]
[337606081,1725891048990,-500.0,0.00035616,14]
[337606083,1725891048999,-500.0,0.00035616,14]
[337606085,1725891049010,-513.66900791,0.00035616,14]
[337606087,1725891049020,-500.0,0.00035616,14]
[337606089,1725891049029,-881.19,0.00035616,14]
[337606091,1725891049039,-500.0,0.00035616,2]
[337606093,1725891049049,-615.69,0.00035616,14]
[337606095,1725891049059,-500.0,0.00035616,14]
[337606112,1725891049217,-500.0,0.00035616,14]
[337606114,1725891049231,-500.0,0.00035616,14]
[337606116,1725891049242,-500.0,0.00035616,14]
[337606118,1725891049253,-1906.16,0.00035616,14]
[337606120,1725891049264,-245.978072,0.00035616,14]
[337606122,1725891049273,-245.978072,0.00035616,14]
[337606124,1725891049284,-1809.12,0.00035616,14]
[337606126,1725891049295,-245.978072,0.00035616,14]
[337606128,1725891049306,-245.978072,0.00035616,14]
[337606130,1725891049316,-287.47311274,0.00035616,14]
[337606132,1725891049329,-594.62,0.00035616,14]
[337606134,1725891049339,-500.0,0.00035616,14]
[337606136,1725891049349,-1198.04,0.00035616,14]
[337606138,1725891049359,-500.0,0.00035616,14]
[337606140,1725891049369,-500.0,0.00035616,14]
[337606142,1725891049380,-500.0,0.00035616,14]
[337606144,1725891049391,-245.978072,0.00035616,14]
[337606146,1725891049401,-500.0,0.00035616,14]
[337606148,1725891049411,-245.978072,0.00035616,14]
[337606150,1725891049422,-245.978072,0.00035616,14]
[337606152,1725891049433,-151.0,0.00035616,14]
[337606154,1725891049444,-245.978072,0.00035616,14]
[337606156,1725891049453,-151.0,0.00035616,14]
[337606158,1725891049464,-151.0,0.00035616,14]
[337606160,1725891049476,-151.0,0.00035616,14]
[337606162,1725891049486,-500.0,0.00035616,14]
[337606164,1725891049496,-1314.29,0.00035616,14]
[337606166,1725891049506,-151.0,0.00035616,14]
[337606168,1725891049516,-151.0,0.00035616,14]
[337606170,1725891049526,-151.0,0.00035616,14]
[337606172,1725891049536,-151.0,0.00035616,14]
[337606174,1725891049547,-536.06,0.00035616,14]
[337606176,1725891049557,-917.18,0.00035616,14]
[337606177,1725891049569,-500.51381378,0.00035616,14]
[337606179,1725891049579,-500.0,0.00035616,14]
[337606181,1725891049589,-500.0,0.00035616,14]
[337606183,1725891049599,-6516.51,0.00035616,14]
[337606185,1725891049608,-500.0,0.00035616,14]
[337606187,1725891049618,-6516.51,0.00035616,14]
[337606189,1725891049629,-6516.51,0.00035616,14]
[337606191,1725891049639,-6516.51,0.00035616,14]
[337606193,1725891049649,-6516.51,0.00035616,14]
[337606195,1725891049659,-500.0,0.00035616,14]
[337606197,1725891049669,-6516.51,0.00035616,14]
[337606199,1725891049678,-6516.51,0.00035616,14]
[337606201,1725891049688,-6516.51,0.00035616,14]
[337606203,1725891049698,-6516.51,0.00035616,14]
[337606205,1725891049708,-6516.51,0.00035616,14]
[337606207,1725891049718,-6516.51,0.00035616,14]
[337606209,1725891049728,-500.0,0.00035616,14]
[337606211,1725891049739,-6516.51,0.00035616,14]
[337606213,1725891049749,-6516.51,0.00035616,14]
[337606215,1725891049759,-500.0,0.00035616,14]
[337606217,1725891049768,-6516.51,0.00035616,14]
[337606219,1725891049778,-6516.51,0.00035616,14]
[337606221,1725891049788,-6516.51,0.00035616,14]
[337606223,1725891049798,-6516.51,0.00035616,14]
[337606225,1725891049808,-6516.51,0.00035616,14]
[337606227,1725891049818,-1667.04,0.00035616,14]
[337606230,1725891049828,-500.0,0.00035616,14]
[337606231,1725891049838,-6516.51,0.00035616,14]
[337606234,1725891049848,-3469.96949141,0.00035616,14]
[337606268,1725891050184,155.0,0.00027,2]
[337606280,1725891050288,-500.0,0.0003232,2]
[337606282,1725891050299,-500.0,0.0003232,2]
[337606284,1725891050308,-500.0,0.0003232,2]
[337606286,1725891050318,-500.0,0.0003232,2]
[337606288,1725891050329,-500.0,0.0003232,2]
[337606290,1725891050339,-500.0,0.0003232,2]
[337606292,1725891050349,-489.3,0.0003232,2]
[337606294,1725891050359,-500.0,0.0003232,2]
[337606296,1725891050369,-500.0,0.0003232,2]
[337606298,1725891050379,-500.0,0.0003232,2]
[337606301,1725891050390,-500.0,0.0003232,2]
[337606303,1725891050400,-500.0,0.0003232,2]
[337606305,1725891050410,-500.0,0.0003232,2]
[337606307,1725891050419,-500.0,0.0003232,2]
[337606309,1725891050428,-500.0,0.0003232,2]
[337606311,1725891050438,-500.0,0.0003232,2]
[337606313,1725891050447,-500.0,0.0003232,2]
[337606315,1725891050457,-500.0,0.0003232,2]
[337606317,1725891050466,-500.0,0.0003232,2]
[337606319,1725891050477,-500.0,0.0003232,2]
[337606321,1725891050487,-500.0,0.0003232,2]
[337606322,1725891050496,-500.0,0.0003232,2]
[337606324,1725891050504,-820.93187837,0.00032767,2]
[337606326,1725891050514,-3046.54050859,0.00035616,14]
[337606328,1725891050523,-6516.51,0.00035616,14]
[337606330,1725891050534,-6516.51,0.00035616,14]
[337606332,1725891050544,-1032.1,0.00035616,14]
[337606335,1725891050556,-6516.51,0.00035616,14]
[337606337,1725891050568,-500.0,0.00035616,14]
[337606339,1725891050579,-6516.67187796,0.00035616,14]
[337606341,1725891050588,-1549.17,0.00035616,14]
[337606343,1725891050598,-500.0,0.00035616,14]
[337606345,1725891050608,-500.0,0.00035616,14]
[337606347,1725891050617,-500.0,0.00035616,14]
[337606349,1725891050626,-500.0,0.00035616,14]
[337606351,1725891050639,-500.0,0.00035616,14]
[337606353,1725891050648,-500.0,0.00035616,14]
[337606355,1725891050660,-1565.33,0.00035616,14]
[337606357,1725891050670,-151.0,0.00035616,14]
[337606359,1725891050679,-151.0,0.00035616,14]
[337606361,1725891050688,-151.0,0.00035616,14]
[337606363,1725891050699,-151.0,0.00035616,14]
[337606365,1725891050708,-614.6366872,0.00035616,14]
[337606367,1725891050718,-533.48,0.00035616,14]
[337606369,1725891050733,-500.0,0.00035616,14]
[337606371,1725891050742,-500.0,0.00035616,14]
[337606373,1725891050751,-587.88,0.00035616,14]
[337606375,1725891050761,-4147.6,0.00035616,14]
[337606377,1725891050770,-151.0,0.00035616,14]
[337606379,1725891050780,-264.651072,0.00035616,14]
[337606381,1725891050789,-151.0,0.00035616,14]
[337606383,1725891050799,-500.0,0.00035616,14]
[337606386,1725891050808,-151.0,0.00035616,14]
[337606388,1725891050818,-151.0,0.00035616,14]
[337606390,1725891050829,-1067.14,0.00035616,14]
[337606392,1725891050839,-616.38526506,0.00035616,14]
[337606394,1725891050848,-505.02,0.00035616,14]
[337606396,1725891050857,-505.02,0.00035616,14]
[337606398,1725891050867,-505.02,0.00035616,14]
[337606400,1725891050876,-505.02,0.00035616,14]
[337606402,1725891050885,-596.45,0.00035616,14]
[337606404,1725891050894,-505.02,0.00035616,14]
[337606406,1725891050904,-500.0,0.00035616,14]
[337606408,1725891050913,-505.02,0.00035616,14]
[337606410,1725891050924,-151.0,0.00035616,14]
[337606412,1725891050935,-505.02,0.00035616,14]
[337606414,1725891050944,-505.02,0.00035616,14]
[337606416,1725891050955,-151.0,0.00035616,14]
[337606418,1725891050966,-500.0,0.00035616,14]
[337606420,1725891050977,-505.02,0.00035616,14]
[337606422,1725891050986,-151.0,0.00035616,14]
[337606424,1725891050995,-151.0,0.00035616,14]
[337606427,1725891051006,-505.02,0.00035616,14]
[337606429,1725891051016,-505.02,0.00035616,14]
[337606431,1725891051027,-231.18207011,0.00035616,14]
[337606519,1725891051975,-387.03,0.00032312,3]
[337606521,1725891051985,-273.83792989,0.00035616,14]
[337606523,1725891051994,-505.02,0.00035616,14]
[337606525,1725891052003,-505.02,0.00035616,14]
[337606527,1725891052013,-505.02,0.00035616,14]
[337606529,1725891052023,-505.02,0.00035616,14]
[337606531,1725891052032,-505.02,0.00035616,14]
[337606533,1725891052042,-505.02,0.00035616,14]
[337606535,1725891052052,-500.0,0.00035616,14]
[337606537,1725891052062,-505.02,0.00035616,14]
[337606539,1725891052071,-505.02,0.00035616,14]
[337606541,1725891052080,-505.02,0.00035616,14]
[337606543,1725891052090,-701.7,0.00035616,2]
[337606545,1725891052099,-505.02,0.00035616,14]
[337606547,1725891052108,-505.02,0.00035616,14]
[337606549,1725891052118,-505.06092832,0.00035616,14]
[337606551,1725891052127,-702.79,0.00035616,14]
[337606553,1725891052136,-500.0,0.00035616,14]
[337606555,1725891052146,-611.09613409,0.00035616,14]
[337606558,1725891052158,-415.54386591,0.00035616,14]
[337606560,1725891052167,-314.51413419,0.00035616,14]
[337606568,1725891052236,156.09404122,0.00027,2]
[337609360,1725891158432,500.0,0.00028,120]
[337609371,1725891611711,6187.01,0.00027,2]
[337609381,1725892028222,-1500.0,0.0003,2]
[337609382,1725892028247,-1000.0,0.00030137,2]
[337609383,1725892028271,-657.83,0.00030137,2]
[337609384,1725892028292,-166.666666,0.00030541,2]
[337609385,1725892028313,-225.8609559,0.00031111,2]
[337609386,1725892028334,-166.666666,0.00031374,2]
[337609387,1725892028355,-400.0,0.0003145,2]
[337609388,1725892028376,-6185.2926065,0.00031451,2]
[337609389,1725892028397,-268.231728,0.00031522,2]
[337609390,1725892028419,-250.0,0.00031819,2]
[337609391,1725892028442,-250.0,0.00031906,2]
[337609392,1725892028464,-250.0,0.00031993,2]
[337609393,1725892028489,-250.0,0.0003208,2]
[337609394,1725892028514,-250.0,0.00032168,2]
[337609395,1725892028537,-166.666666,0.00032207,2]
[337609396,1725892028561,-250.0,0.00032255,2]
[337609397,1725892028585,-250.0,0.00032342,2]
[337609398,1725892028606,-500.0,0.000324,5]
[337609399,1725892028631,-250.0,0.00032429,2]
[337609400,1725892028656,-1628.04876713,0.00032504,2]
[337609401,1725892028680,-250.0,0.00032517,2]
[337609402,1725892028703,-320.0,0.00032569,2]
[337609403,1725892028728,-24900.0,0.00032569,2]
[337609404,1725892028752,-250.0,0.00032604,2]
[337609405,1725892028776,-250.0,0.00032691,2]
[337609406,1725892028800,-250.0,0.00032779,2]
[337609407,1725892028825,-250.0,0.00032866,2]
[337609408,1725892028849,-250.0,0.00032953,2]
[337609409,1725892028875,-166.666666,0.00033039,2]
[337609410,1725892028900,-250.0,0.0003304,2]
[337609411,1725892028923,-250.0,0.00033128,2]
[337609412,1725892028949,-250.0,0.00033215,2]
[337609413,1725892028973,-250.0,0.00033302,2]
[337609414,1725892028996,-250.0,0.00033389,2]
[337609415,1725892029019,-250.0,0.00033477,2]
[337609416,1725892029042,-1628.04876711,0.00033482,2]
[337609417,1725892029064,-703.81585332,0.0003377,5]
[337609418,1725892029086,-166.666666,0.00033872,2]
[337609419,1725892029107,-1000.0,0.00034246,60]
[337609420,1725892029130,-1628.04876711,0.00034461,2]
[337609421,1725892029151,-4953.08148448,0.00034473,2]
[337609422,1725892029175,-560.0,0.00034595,2]
[337609423,1725892029202,-166.666666,0.00034705,2]
[337609424,1725892029225,-4953.08148448,0.00034715,2]
[337609425,1725892029247,-500.0,0.0003477,2]
[337609426,1725892029270,-1843.87291257,0.00034901,2]
[337609427,1725892029292,-1843.87291256,0.00034904,2]
[337609428,1725892029315,-1843.87291256,0.00034907,2]
[337609429,1725892029339,-1843.87291256,0.00034909,2]
[337609430,1725892029364,-1843.87291256,0.00034912,2]
[337609431,1725892029387,-889.30393233,0.00034914,2]
[337609432,1725892029411,-4953.08148448,0.00034949,2]
[337609433,1725892029435,-555.22,0.0003499,3]
[337609434,1725892029457,-370.13,0.00034991,3]
[337609435,1725892029480,-185.07,0.00034991,3]
[337609436,1725892029501,-150.47855342,0.00035,2]
[337609437,1725892029524,-500.0,0.00035,7]
[337609438,1725892029547,-500.0,0.00035,7]
[337609439,1725892029573,-500.0,0.00035,7]
[337609440,1725892029597,-371.70346534,0.00035,7]
[337609441,1725892029620,-500.0,0.00035,7]
[337609442,1725892029645,-500.0,0.00035,7]
[337609443,1725892029668,-500.0,0.00035,7]
[337609444,1725892029692,-500.0,0.00035,7]
[337609445,1725892029715,-521.51917274,0.00035,7]
[337609446,1725892029738,-500.0,0.00035,7]
[337609447,1725892029763,-500.0,0.00035,7]
[337609448,1725892029788,-500.0,0.00035,7]
[337609449,1725892029813,-500.0,0.00035,7]
[337609450,1725892029837,-500.0,0.00035,7]
[337609451,1725892029862,-457.72527562,0.00035,7]
[337609452,1725892029887,-500.0,0.00035,7]
[337609453,1725892029912,-500.0,0.00035,7]
[337609454,1725892029937,-500.0,0.00035,7]
[337609455,1725892029959,-500.0,0.00035,7]
[337609456,1725892029984,-500.0,0.00035,7]
[337609457,1725892030007,-500.0,0.00035,7]